[Event "Czech Extraliga 2024-25"]
[Site "Czechia"]
[Date "2024.11.02"]
[Round "1.7"]
[White "Rydl, Jiri"]
[Black "Gnojek, Petr"]
[Result "0-1"]
[ECO "A37"]
[WhiteElo "2404"]
[BlackElo "2420"]
[Annotator "TA"]
[PlyCount "90"]
[EventDate "2024.09.12"]
[EventType "team-tourn"]
[EventCountry "CZE"]
[SourceTitle "playchess.com"]
[Source "ChessBase"]
[SourceQuality "1"]
[TimeControl "40/5400+30:1800+30"]

{[%evp 18,90,30,0,52,49,56,57,66,60,69,51,55,43,31,25,36,44,25,19,27,-20,-25,-27,6,-92,-96,-106,-117,-106,-106,-117,-77,-74,-69,-115,-81,-76,-72,-66,-61,-77,-68,-67,-75,-101,-75,-110,-87,-99,-116,-89,0,-104,-93,-194,-203,-239,-232,-231,-218,-249,-249,-249,-257,-306,-311,-334,-354,-385,-385,-557,-559,-608,-594]} 1. c4 {[%emt 0:00:14]} g6 {[%emt 0:00:20]} 2. g3 {[%emt 0:00:28]} Bg7 {[%emt 0:00:07]} 3. Bg2 {[%emt 0:00:03]} c5 {[%emt 0:01:05]} 4. Nc3 {[%emt 0:00:22]} Nc6 {[%emt 0:00:09]} 5. Nf3 {[%emt 0:00:29]} e5 {[%emt 0:02:02]} 6. O-O {[%emt 0:00:40]} Nge7 {[%emt 0:00:13]} 7. a3 {[%emt 0:00:29]} a5 {[%emt 0:06:05]} 8. Ne1 {[%emt 0:01:13]} d6 {[%emt 0:00:39]} 9. Nc2 {[%emt 0:00:21]} O-O {[%emt 1:24:20]} 10. Rb1 {[%emt 0:00:57]} Bf5 {[%emt 0:00:00]} (10... Be6 $11) 11. d3 $14 {[%emt 0:01:08]} Qd7 {[%emt 0:00:00]} 12. b4 {[%emt 0:08:17]} cxb4 {[%emt 0:00:00] White is slightly better.} 13. axb4 {[%emt 0:00:22]} Bh3 $1 {[%emt 0:00:00]} 14. Bxh3 {[%emt 0:05:16]} Qxh3 {[%emt 0:00:00]} 15. bxa5 {[%emt 0:11:35]} Rxa5 {[%emt 0:00:00][%cal Oe5e4]} 16. Ne4 {[%emt 0:10:25][%cal Oc1d2]} Qd7 {[%emt 0:00:00]} 17. Bd2 {[%emt 0:00:13]} Ra7 {[%emt 0:00:00]} 18. Be3 {[%emt 0:10:55]} Raa8 {[%emt 0:00:00]} 19. c5 {[%emt 0:15:36]} (19. Bh6 $142) 19... d5 $11 {[%emt 0:00:00]} 20. Nd6 {[%emt 0:00:12]} Rab8 {[%emt 0:00:00][%cal Ob7b6]} 21. f4 {[%emt 0:00:30]} (21. Nb4 $11 {remains equal.}) 21... d4 $17 {[%emt 0:00:00]} 22. Bd2 {[%emt 0:02:02]} exf4 {[%emt 0:00:00]} 23. Bxf4 {[%emt 0:00:30]} Nd5 {[%emt 0:00:00]} 24. Qd2 {[%emt 0:12:20]} Nxf4 25. Qxf4 {[%emt 0:00:04]} Be5 {[%emt 0:00:00]} 26. Qh6 {[%emt 0:00:55]} (26. Qf3 $15) 26... Bxd6 {[%emt 0:00:00]} 27. cxd6 {[%emt 0:00:05]} Qxd6 {[%emt 0:00:00]} 28. Rb5 {[%emt 0:01:49] [#] And now Rh5 would win.} Qe6 {[%emt 0:00:00]} 29. Rf2 {[%emt 0:08:45]} Rfd8 {[%emt 0:00:00]} 30. Qg5 {[%emt 0:03:43]} Rd7 {[%emt 0:01:50]} 31. h4 {[%emt 0:03:43]} Rbd8 32. Qf4 {[%emt 0:00:21]} h5 (32... Ra8 {is more complex.} 33. Nb4 Ra1+ 34. Rf1 Rxf1+ 35. Kxf1 Re7) 33. Ne1 {[%emt 0:02:58]} Ne7 {[%emt 0:10:10]} 34. Re5 {[%emt 0:00:00]} Qb3 (34... Nd5 $1 $17 {[%cal Rd5f4]} 35. Qxd4 Qc6) 35. Nf3 {[%emt 0:01:00] [#]} (35. Ng2 $11 {keeps the balance.}) 35... Nd5 $1 {[%emt 0:01:00]} 36. Qxd4 {[%emt 0:00:30]} (36. Qh6 $17 Ne3 37. Re4) 36... Nf6 $19 {[%emt 0:00:30]} 37. Qf4 {[%emt 0:00:00]} Ng4 {[%emt 0:00:30]} 38. Re4 {[%emt 0:01:00]} Qb6 {[%emt 0:00:00]} 39. d4 {[%emt 0:00:00][%cal Of3e5]} Nxf2 {[%emt 0:00:00]} 40. Kxf2 {[%emt 0:00:00]} Rd5 {[%emt 0:00:00]} 41. Kg2 {[%emt 0:30:17]} Rf5 {[%emt 0:05:08]} 42. Qe3 {[%emt 0:00:00]} Qc6 {[%emt 0:02:13]} 43. Re7 {[%emt 0:00:00]} b5 {[%emt 0:00:30]} 44. Qd3 {[%emt 0:00:00]} (44. Qd2 {was called for.}) 44... b4 {[%emt 0:00:30]} 45. Qb3 {[%emt 0:00:00]} Rxd4 {[%emt 0:07:16] Weighted Error Value: White=0.33/Black=0.10 (very precise) .  Mistake:       	White=6     	Black=1      Inaccurate:     	White=2     	Black=2      OK:         	White=9     	Black=19     Best:        	---       	Black=3      Strong:       	---       	Black=2} 0-1

[Event "Czech Extraliga 2024-25"]
[Site "Czechia"]
[Date "2024.11.02"]
[Round "1.7"]
[White "Zeman, Matyas"]
[Black "Flajsman, Pavel"]
[Result "1-0"]
[ECO "B56"]
[WhiteElo "2332"]
[BlackElo "2179"]
[Annotator "RC"]
[PlyCount "109"]
[EventDate "2024.09.12"]
[EventType "team-tourn"]
[EventCountry "CZE"]
[SourceTitle "playchess.com"]
[Source "ChessBase"]
[SourceQuality "1"]
[TimeControl "40/5400+30:1800+30"]

1. e4 {[%emt 0:00:08]} c5 {[%emt 0:00:26]} 2. Nf3 {[%emt 0:00:22]} d6 {[%emt 0:00:06]} 3. d4 {[%emt 0:01:18]} cxd4 {[%emt 0:00:02]} 4. Nxd4 {[%emt 0:00:09]} Nf6 {[%emt 0:00:03]} 5. Nc3 {[%emt 0:00:10]} Nc6 {[%emt 0:00:09]} 6. f3 {[%emt 0:00:22]} e5 {[%emt 0:00:35]} 7. Nb3 {[%emt 0:00:08]} Be7 {[%emt 0:00:43]} 8. Be3 {[%emt 0:00:28]} O-O {[%emt 0:00:16]} 9. Qd2 {[%emt 0:02:27]} a5 {[%emt 0:00:55]} 10. Bb5 {[%emt 0:08:25]} Be6 {[%emt 0:18:49]} 11. Rd1 {[%emt 0:08:48]} Nb4 {[%emt 0:38:33]} 12. a3 {[%emt 0:14:19]} Na6 {[%emt 0:00:11]} 13. O-O {[%emt 0:18:24]} Nc7 {[%emt 0:02:19]} 14. Bb6 {[%emt 0:00:20]} Nd7 {[%emt 0:00:43]} 15. Bxd7 {[%emt 0:02:03]} Qxd7 {[%emt 0:00:35]} 16. Nxa5 {[%emt 0:08:21]} Ra6 {[%emt 0:00:54]} 17. Bxc7 {[%emt 0:00:27]} Qxc7 {[%emt 0:00:02]} 18. Nb3 {[%emt 0:00:23]} Bxb3 {[%emt 0:06:34]} 19. cxb3 {[%emt 0:00:07]} Qb6+ {[%emt 0:00:06]} 20. Rf2 {[%emt 0:03:40]} Qxb3 {[%emt 0:00:16]} 21. Nd5 {[%emt 0:00:55]} Bd8 {[%emt 0:00:09]} 22. Qc2 {[%emt 0:05:37]} Qxc2 {[%emt 0:17:39]} 23. Rxc2 {[%emt 0:00:10]} Bb6+ {[%emt 0:00:58]} 24. Kf1 {[%emt 0:00:27]} Bd4 {[%emt 0:00:10]} 25. Rd3 {[%emt 0:02:24]} Kh8 {[%emt 0:08:51]} 26. Rb3 {[%emt 0:13:05]} Rc6 {[%emt 0:00:04]} 27. Rxc6 {[%emt 0:00:05]} bxc6 {[%emt 0:00:01]} 28. Ne7 {[%emt 0:00:05]} c5 {[%emt 0:00:56]} 29. Ke2 {[%emt 0:01:04]} c4 {[%emt 0:01:39]} 30. Rb7 {[%emt 0:00:05]} h6 {[%emt 0:01:01]} 31. Kd2 {[%emt 0:01:09]} Ra8 {[%emt 0:00:11]} 32. Kc2 {[%emt 0:01:10]} c3 {[%emt 0:00:41]} 33. Nc6 {[%emt 0:07:26]} Kh7 {[%emt 0:01:46]} 34. bxc3 {[%emt 0:02:05]} Bc5 {[%emt 0:00:19]} 35. Rxf7 {[%emt 0:00:33]} Rxa3 {[%emt 0:00:32]} 36. Kb2 {[%emt 0:00:17]} Ra6 {[%emt 0:00:38]} 37. Nb4 {[%emt 0:00:21]} Rb6 {[%emt 0:00:36]} 38. Kb3 {[%emt 0:00:09]} Kg6 {[%emt 0:00:18]} 39. Rd7 {[%emt 0:00:29]} h5 {[%emt 0:00:37]} 40. Kc4 {[%emt 0:00:47]} Kh6 {[%emt 0:00:35]} 41. Nd3 {[%emt 0:04:20]} Ba3 {[%emt 0:12:55]} 42. Ra7 {[%emt 0:02:13]} Bb2 {[%emt 0:03:32]} 43. Ra2 {[%emt 0:09:25]} Rc6+ {[%emt 0:00:03]} 44. Kd5 {[%emt 0:00:04]} Rxc3 {[%emt 0:00:07]} 45. Nxb2 {[%emt 0:00:03]} Rc2 {[%emt 0:00:03]} 46. Kxd6 {[%emt 0:00:07]} Rxg2 {[%emt 0:00:39]} 47. h4 {[%emt 0:00:03]} g5 {[%emt 0:15:00]} 48. Kxe5 {[%emt 0:00:06]} gxh4 {[%emt 0:00:01]} 49. Ra6+ {[%emt 0:00:06]} Kg5 {[%emt 0:00:05]} 50. Nd3 {[%emt 0:00:04]} h3 {[%emt 0:00:04]} 51. Nf4 {[%emt 0:20:17]} h2 {[%emt 0:00:39]} 52. Rg6+ {[%emt 0:00:00]} Kh4 {[%emt 0:00:02]} 53. Nxg2+ {[%emt 0:00:00]} Kh3 {[%emt 0:00:03]} 54. Nf4+ {[%emt 0:00:00]} Kh4 {[%emt 0:00:02]} 55. Rh6 {[%emt 0:00:00]} 1-0

[Event "Czech Extraliga 2024-25"]
[Site "Czechia"]
[Date "2024.11.02"]
[Round "1.7"]
[White "Riha, Vojtech"]
[Black "Ponizil, Cyril"]
[Result "1/2-1/2"]
[ECO "B42"]
[WhiteElo "2261"]
[BlackElo "2465"]
[Annotator "TA"]
[PlyCount "98"]
[EventDate "2024.09.12"]
[EventType "team-tourn"]
[EventCountry "CZE"]
[SourceTitle "playchess.com"]
[Source "ChessBase"]
[SourceQuality "1"]
[TimeControl "40/5400+30:1800+30"]

{[%evp 15,98,64,86,66,67,52,75,43,98,39,95,111,98,112,127,119,125,110,120,93,150,28,16,16,33,6,15,-4,0,0,0,-35,-31,-68,0,0,43,56,47,51,58,31,145,93,140,149,160,137,143,95,285,276,459,0,20,25,22,8,29,0,0,0,64,70,91,0,0,0,0,0,0,0,8,0,0,0,0,0,0,0,0,0,0,0,0]} 1. e4 {[%emt 0:00:05]} c5 {[%emt 0:00:04]} 2. Nf3 {[%emt 0:00:25]} e6 {[%emt 0:00:04]} 3. c4 {[%emt 0:00:31]} a6 {[%emt 0:00:06]} 4. Nc3 {[%emt 0:02:00]} Qc7 {[%emt 0:00:28]} 5. d4 {[%emt 0:03:37]} cxd4 {[%emt 0:00:09]} 6. Nxd4 {[%emt 0:00:08]} Nf6 {[%emt 0:00:03]} 7. Bd3 {[%emt 0:05:11]} d6 {[%emt 0:00:25]} 8. O-O {[%emt 0:00:47]} g6 {[%emt 0:03:37]} 9. Kh1 {[%emt 0:06:17] B42: Sicilian: Kan Variation: 5 Bd3.} Bg7 {[%emt 0:00:08]} 10. Bg5 {[%emt 0:04:34]} Nbd7 {[%emt 0:03:03]} 11. f4 $146 {[%emt 0:03:46]} ({Predecessor:} 11. Rc1 b6 12. f3 Bb7 13. Qd2 O-O 14. Rfd1 Rac8 15. Bf1 Ne5 16. b3 Rfd8 17. Qf4 Ned7 {1-0 Vogt,L (2505)-Gheorghiu,F (2500) Biel MTO op 1990 (9)}) 11... h6 {[%emt 0:01:20]} (11... O-O $14) 12. Bh4 {[%emt 0:03:39]} (12. Nxe6 $1 $16 fxe6 13. Bxf6 Nxf6 (13... Bxf6 14. e5 $16) 14. e5 dxe5 15. Bxg6+ Ke7 16. fxe5 Qxe5 17. Qd3) 12... g5 {[%emt 0:06:20]} 13. Bg3 $1 $16 {[%emt 0:02:56][%cal Oe4e5] Strongly threatening e5!} (13. fxg5 $6 hxg5 14. Bxg5 Nh5 $11) 13... gxf4 {[%emt 0:00:45]} 14. Bxf4 {[%emt 0:00:54]} Ne5 {[%emt 0:00:24]} 15. Be2 {[%emt 0:02:33]} Bd7 {[%emt 0:00:14] Prevents Ndb5} 16. Rc1 {[%emt 0:02:34]} Rc8 {[%emt 0:10:50]} 17. b4 {[%emt 0:07:14][%cal Oc4c5]} Qb6 {[%emt 0:08:30] [#]} (17... O-O $142) 18. Bxe5 {[%emt 0:16:30]} (18. a3 $1 $16) 18... dxe5 $11 {[%emt 0:00:08]} 19. Nc2 {[%emt 0:00:04]} Qd8 {[%emt 0:17:16]} 20. Qe1 {[%emt 0:07:06]} Bc6 {[%emt 0:08:16]} 21. Qg3 {[%emt 0:09:10]} O-O {[%emt 0:00:09]} 22. Rcd1 {[%emt 0:07:20]} (22. Qxe5 $2 Nxe4 $19) 22... Qe7 {[%emt 0:00:58]} 23. Bf3 {[%emt 0:00:47]} Rfd8 {[%emt 0:01:25]} 24. c5 {[%emt 0:02:05]} Qe8 {[%emt 0:08:26]} (24... b6 $15 25. cxb6 Bb7) 25. Ne3 {[%emt 0:05:49]} (25. Qxe5 $2 Nxe4 (25... Nd5 $2 26. Qxg7+ Kxg7 27. exd5 $19) 26. Qf4 Nxc3 $19 (26... Bxc3 27. Bxe4 Rxd1 28. Rxd1 $15)) 25... Rd4 {[%emt 0:02:56] Repels Nc4} 26. Rxd4 {[%emt 0:03:59]} (26. Qxe5 $2 Nxe4 (26... Rxb4 27. Qg3 $11) (26... Nd5 27. Qxd4 Bxd4 28. exd5 $15) 27. Qh5 Nxc3 $19) 26... exd4 {[%emt 0:00:04]} 27. e5 $1 {[%emt 0:00:04][%cal Be4e5,Be5f6,Bf6g7][%mdl 32]} Nh7 {[%emt 0:06:03]} 28. Ng4 {[%emt 0:01:02]} Bxf3 {[%emt 0:09:20]} (28... dxc3 $14 29. Bxc6 Rxc6 30. Nxh6+ Kh8 31. Nxf7+ Kg8) 29. Nf6+ {[%emt 0:01:35]} ({White should play} 29. gxf3 {And now Nf6+ would win.} dxc3 30. Nf6+ Nxf6 31. exf6) 29... Nxf6 $16 {[%emt 0:00:05]} 30. exf6 {[%emt 0:00:03][%csl Gf6][%cal Rg3g7]} Qf8 {[%emt 0:00:03]} (30... Bxg2+ $2 31. Qxg2 Qf8 32. fxg7 Qxg7 33. Qxb7 $18) 31. gxf3 {[%emt 0:02:26]} dxc3 {[%emt 0:00:03]} 32. Rg1 $1 {[%emt 0:00:05] White has more active pieces.} Kh7 $2 {[%emt 0:09:46]} 33. fxg7 $18 {[%emt 0:00:08][%mdl 4096] Endgame. KQR-KQR} (33. Qxg7+ Qxg7 34. Rxg7+ Kh8 $17) (33. Qf4 Bxf6 34. Qxf6 b6 $11) 33... Qd8 $2 {[%emt 0:01:40]} (33... Qg8 {keeps fighting.} 34. Qe5 c2) 34. Qe5 $2 {[%emt 0:01:29]} (34. g8=R $18 Qxg8 35. Qf4) 34... Kg8 {[%emt 0:01:06]} 35. Qxc3 {[%emt 0:00:09]} Qd5 {[%emt 0:00:05]} 36. Qe3 {[%emt 0:00:50]} e5 {[%emt 0:01:09]} 37. Re1 {[%emt 0:00:27]} Rc6 {[%emt 0:00:21]} 38. Qe4 {[%emt 0:00:38]} (38. Qxe5 $2 {too greedy.} Qxf3+ (38... Qxa2 39. Qe7 $18) 39. Kg1 Rg6+ $19) 38... Qxe4 {[%emt 0:00:43]} ({Better is} 38... Qxa2 $11 39. Rg1 (39. Qxe5 Rg6 $11) 39... Rg6) 39. Rxe4 $11 {[%emt 0:00:08] KR-KR} f6 {[%emt 0:00:41][%cal Bf7f6,Bf6f5][%mdl 32] [#]} 40. Rg4 {[%emt 0:00:24]} (40. f4 $1 $16) 40... f5 {[%emt 0:00:15]} 41. Rg2 {[%emt 0:04:39]} b6 {[%emt 0:01:23]} 42. cxb6 {[%emt 0:07:50]} Rxb6 {[%emt 0:00:03]} 43. a3 {[%emt 0:00:19]} Rd6 {[%emt 0:04:32]} 44. Re2 {[%emt 0:01:07]} Rd5 {[%emt 0:03:35]} 45. Rc2 {[%emt 0:04:12]} Kxg7 {[%emt 0:00:11]} 46. Rc6 {[%emt 0:01:03]} a5 {[%emt 0:00:59]} 47. Ra6 {[%emt 0:01:24]} axb4 {[%emt 0:00:24]} 48. axb4 {[%emt 0:00:05]} Rd1+ {[%emt 0:05:26]} 49. Kg2 {[%emt 0:00:59]} Rb1 {[%emt 0:00:05]} 1/2-1/2

[Event "Czech Extraliga 2024-25"]
[Site "Czechia"]
[Date "2024.11.02"]
[Round "1.8"]
[White "Volosin, Leon"]
[Black "Vrana, Jan"]
[Result "1/2-1/2"]
[ECO "C68"]
[WhiteElo "2381"]
[BlackElo "2348"]
[Annotator "RC"]
[PlyCount "82"]
[EventDate "2024.09.12"]
[EventType "team-tourn"]
[EventCountry "CZE"]
[SourceTitle "playchess.com"]
[Source "ChessBase"]
[SourceQuality "1"]
[TimeControl "40/5400+30:1800+30"]

1. e4 {[%emt 0:00:02]} e5 {[%emt 0:00:04]} 2. Nf3 {[%emt 0:00:05]} Nc6 {[%emt 0:00:21]} 3. Bb5 {[%emt 0:00:15]} a6 {[%emt 0:00:17]} 4. Bxc6 {[%emt 0:01:16]} dxc6 {[%emt 0:00:04]} 5. d3 {[%emt 0:01:12]} Bd6 {[%emt 0:00:46]} 6. Nbd2 {[%emt 0:00:45]} Ne7 {[%emt 0:03:27]} 7. Nc4 {[%emt 0:04:41]} f6 {[%emt 0:00:06]} 8. d4 {[%emt 0:10:02]} exd4 {[%emt 0:02:31]} 9. Qxd4 {[%emt 0:00:31]} Be6 {[%emt 0:04:09]} 10. Nxd6+ {[%emt 0:09:30]} Qxd6 {[%emt 0:03:18]} 11. Be3 {[%emt 0:02:02]} Qxd4 {[%emt 0:04:49]} 12. Nxd4 {[%emt 0:00:27]} Bf7 {[%emt 0:00:05]} 13. f3 {[%emt 0:08:28]} b6 {[%emt 0:18:30]} 14. O-O-O {[%emt 0:09:05]} O-O-O {[%emt 0:00:41]} 15. b3 {[%emt 0:14:08]} c5 {[%emt 0:03:38]} 16. Ne2 {[%emt 0:01:33]} Nc6 {[%emt 0:02:39]} 17. Nf4 {[%emt 0:15:03]} c4 {[%emt 0:08:47]} 18. Kb2 {[%emt 0:02:13]} Rhe8 {[%emt 0:04:20]} 19. Bf2 {[%emt 0:01:58]} cxb3 {[%emt 0:02:38]} 20. axb3 {[%emt 0:00:52]} Kb7 {[%emt 0:09:18]} 21. h4 {[%emt 0:01:44]} g6 {[%emt 0:03:47]} 22. Rhe1 {[%emt 0:03:03]} a5 {[%emt 0:04:01]} 23. Rxd8 {[%emt 0:06:57]} Rxd8 {[%emt 0:00:42]} 24. Nd3 {[%emt 0:00:11]} Kc8 {[%emt 0:10:44]} 25. Be3 {[%emt 0:00:56]} Re8 {[%emt 0:04:34]} 26. Bd2 {[%emt 0:01:44]} Ne5 {[%emt 0:04:05]} 27. Nxe5 {[%emt 0:00:33]} Rxe5 {[%emt 0:00:01]} 28. Bc3 {[%emt 0:01:07]} Re6 {[%emt 0:00:01]} 29. g4 {[%emt 0:00:16]} Be8 {[%emt 0:02:32]} 30. g5 {[%emt 0:02:12]} f5 {[%emt 0:01:07]} 31. exf5 {[%emt 0:00:28]} Rxe1 {[%emt 0:00:01]} 32. Bxe1 {[%emt 0:00:07]} gxf5 {[%emt 0:00:03]} 33. Bc3 {[%emt 0:00:32]} f4 {[%emt 0:01:40]} 34. Be5 {[%emt 0:00:05]} Bh5 {[%emt 0:00:03]} 35. Bxf4 {[%emt 0:00:10]} Bxf3 {[%emt 0:00:02]} 36. c4 {[%emt 0:01:38]} Kd7 {[%emt 0:01:03]} 37. Kc3 {[%emt 0:00:06]} Bd1 {[%emt 0:01:54]} 38. Bg3 {[%emt 0:00:25]} c6 {[%emt 0:00:57]} 39. Bf2 {[%emt 0:01:07]} b5 {[%emt 0:00:19]} 40. cxb5 {[%emt 0:00:36]} cxb5 {[%emt 0:00:02]} 41. Bb6 {[%emt 0:30:25]} a4 {[%emt 0:32:05]} 1/2-1/2

[Event "Czech Extraliga 2024-25"]
[Site "Czechia"]
[Date "2024.11.02"]
[Round "1.8"]
[White "Velicka, Petr"]
[Black "Kulhanek, Tomas"]
[Result "1/2-1/2"]
[ECO "B52"]
[WhiteElo "2334"]
[BlackElo "2310"]
[Annotator "RC"]
[PlyCount "97"]
[EventDate "2024.09.12"]
[EventType "team-tourn"]
[EventCountry "CZE"]
[SourceTitle "playchess.com"]
[Source "ChessBase"]
[SourceQuality "1"]
[TimeControl "40/5400+30:1800+30"]

1. e4 {[%emt 0:00:03]} c5 {[%emt 0:00:10]} 2. Nf3 {[%emt 0:00:09]} d6 {[%emt 0:00:14]} 3. Bb5+ {[%emt 0:00:08]} Bd7 {[%emt 0:00:18]} 4. Bxd7+ {[%emt 0:00:09]} Qxd7 {[%emt 0:00:08]} 5. c4 {[%emt 0:00:03]} Nf6 {[%emt 0:00:35]} 6. Nc3 {[%emt 0:00:07]} Nc6 {[%emt 0:00:06]} 7. d4 {[%emt 0:00:24]} cxd4 {[%emt 0:00:10]} 8. Nxd4 {[%emt 0:00:07]} g6 {[%emt 0:00:08]} 9. f3 {[%emt 0:00:11]} Bg7 {[%emt 0:00:23]} 10. Be3 {[%emt 0:00:06]} O-O {[%emt 0:00:26]} 11. O-O {[%emt 0:00:31]} a6 {[%emt 0:00:52]} 12. Qd3 {[%emt 0:00:47]} Rab8 {[%emt 0:01:17]} 13. Nxc6 {[%emt 0:06:39]} bxc6 {[%emt 0:00:11]} 14. b3 {[%emt 0:01:21]} Qc7 {[%emt 0:00:37]} 15. Rac1 {[%emt 0:01:02]} Nd7 {[%emt 0:00:38]} 16. Na4 {[%emt 0:03:53]} Ne5 {[%emt 0:08:05]} 17. Qd2 {[%emt 0:05:33]} c5 {[%emt 0:02:21]} 18. Bh6 {[%emt 0:00:35]} Nc6 {[%emt 0:04:07]} 19. Bxg7 {[%emt 0:02:41]} Kxg7 {[%emt 0:00:03]} 20. f4 {[%emt 0:04:58]} Nd4 {[%emt 0:04:28]} 21. f5 {[%emt 0:02:05]} f6 {[%emt 0:09:24]} 22. Nc3 {[%emt 0:02:42]} Qd7 {[%emt 0:02:29]} 23. Ne2 {[%emt 0:14:42]} Nxe2+ {[%emt 0:01:06]} 24. Qxe2 {[%emt 0:01:53]} a5 {[%emt 0:04:03]} 25. Rc3 {[%emt 0:01:18]} a4 {[%emt 0:09:49]} 26. Rg3 {[%emt 0:01:49]} axb3 {[%emt 0:09:06]} 27. axb3 {[%emt 0:00:08]} g5 {[%emt 0:11:46]} 28. h4 {[%emt 0:02:51]} h6 {[%emt 0:03:32]} 29. Kf2 {[%emt 0:15:44]} e6 {[%emt 0:09:14]} 30. Kg1 {[%emt 0:03:52]} Rbe8 {[%emt 0:03:15]} 31. hxg5 {[%emt 0:06:45]} hxg5 {[%emt 0:05:51]} 32. Qb2 {[%emt 0:12:45]} Kg8 {[%emt 0:02:16]} 33. Rgf3 {[%emt 0:02:56]} Rf7 {[%emt 0:04:52]} 34. fxe6 {[%emt 0:00:42]} Rxe6 {[%emt 0:00:13]} 35. Rxf6 {[%emt 0:00:47]} Rfxf6 {[%emt 0:00:38]} 36. Rxf6 {[%emt 0:00:19]} Qg7 {[%emt 0:01:13]} 37. Rf2 {[%emt 0:01:58]} Rxe4 {[%emt 0:02:21]} 38. Qxg7+ {[%emt 0:00:12]} Kxg7 {[%emt 0:00:01]} 39. Rd2 {[%emt 0:00:14]} Re6 {[%emt 0:02:01]} 40. Rd5 {[%emt 0:00:15]} Kg6 {[%emt 0:01:19]} 41. g4 {[%emt 0:35:53]} Rf6 {[%emt 0:10:59]} 42. Kg2 {[%emt 0:00:00]} Kh6 {[%emt 0:00:33]} 43. Kh2 {[%emt 0:00:00]} Kg6 {[%emt 0:00:32]} 44. Kg3 {[%emt 0:00:00]} Kh6 {[%emt 0:00:24]} 45. Rd1 {[%emt 0:00:00]} Kg6 {[%emt 0:00:11]} 46. Ra1 {[%emt 0:00:00]} Rf4 {[%emt 0:03:52]} 47. Rd1 {[%emt 0:00:00]} Rf6 {[%emt 0:00:17]} 48. Rd5 {[%emt 0:00:00]} Kh6 {[%emt 0:00:23]} 49. Kg2 {[%emt 0:05:43]} 1/2-1/2

[Event "Czech Extraliga 2024-25"]
[Site "Czechia"]
[Date "2024.11.02"]
[Round "1.8"]
[White "Mica, Marek"]
[Black "Horak, Martin"]
[Result "0-1"]
[ECO "A07"]
[WhiteElo "2333"]
[BlackElo "2362"]
[Annotator "RC"]
[PlyCount "82"]
[EventDate "2024.09.12"]
[EventType "team-tourn"]
[EventCountry "CZE"]
[SourceTitle "playchess.com"]
[Source "ChessBase"]
[SourceQuality "1"]
[TimeControl "40/5400+30:1800+30"]

1. Nf3 {[%emt 0:00:08]} d5 {[%emt 0:00:26]} 2. g3 {[%emt 0:00:12]} g6 {[%emt 0:02:31]} 3. c4 {[%emt 0:02:35]} c6 {[%emt 0:01:19]} 4. Bg2 {[%emt 0:01:41]} Bg7 {[%emt 0:02:00]} 5. Qc2 {[%emt 0:02:31]} e5 {[%emt 0:08:31]} 6. d3 {[%emt 0:03:35]} Ne7 {[%emt 0:02:56]} 7. O-O {[%emt 0:01:53]} O-O {[%emt 0:00:38]} 8. e4 {[%emt 0:03:42]} Nd7 {[%emt 0:12:13]} 9. b4 {[%emt 0:06:08]} a5 {[%emt 0:03:49]} 10. b5 {[%emt 0:02:30]} d4 {[%emt 0:08:24]} 11. bxc6 {[%emt 0:02:06]} Nxc6 {[%emt 0:02:40]} 12. Ba3 {[%emt 0:04:04]} Nb4 {[%emt 0:01:29]} 13. Bxb4 {[%emt 0:01:43]} axb4 {[%emt 0:00:06]} 14. Nbd2 {[%emt 0:00:45]} Nc5 {[%emt 0:01:53]} 15. Rfb1 {[%emt 0:04:42]} Ra3 {[%emt 0:01:49]} 16. Nb3 {[%emt 0:02:10]} Na4 {[%emt 0:05:51]} 17. Nc1 {[%emt 0:05:36]} Qa5 {[%emt 0:01:27]} 18. Rb3 {[%emt 0:02:51]} Nc3 {[%emt 0:03:42]} 19. Rxa3 {[%emt 0:12:23]} Qxa3 {[%emt 0:01:42]} 20. Qb3 {[%emt 0:04:40]} Qa5 {[%emt 0:01:44]} 21. a3 {[%emt 0:02:01]} Bh6 {[%emt 0:00:43]} 22. Na2 {[%emt 0:01:47]} bxa3 {[%emt 0:02:58]} 23. Nb4 {[%emt 0:03:12]} a2 {[%emt 0:04:33]} 24. Nd5 {[%emt 0:01:39]} b5 {[%emt 0:05:57]} 25. Nxe5 {[%emt 0:06:18]} Be6 {[%emt 0:07:11]} 26. Nc6 {[%emt 0:08:30]} bxc4 {[%emt 0:00:52]} 27. dxc4 {[%emt 0:01:55]} Qc5 {[%emt 0:01:19]} 28. Nce7+ {[%emt 0:06:40]} Kh8 {[%emt 0:00:55]} 29. Nxc3 {[%emt 0:02:14]} Bxc4 {[%emt 0:06:02]} 30. Na4 {[%emt 0:01:07]} Qc7 {[%emt 0:00:05]} 31. Qa3 {[%emt 0:01:23]} Rb8 {[%emt 0:02:18]} 32. Nb2 {[%emt 0:00:25]} Bf8 {[%emt 0:00:48]} 33. Nxc4 {[%emt 0:02:00]} Rb1+ {[%emt 0:00:48]} 34. Bf1 {[%emt 0:00:03]} Rxa1 {[%emt 0:00:09]} 35. Nxg6+ {[%emt 0:01:11]} hxg6 {[%emt 0:00:06]} 36. Qxf8+ {[%emt 0:00:05]} Kh7 {[%emt 0:00:05]} 37. Nd6 {[%emt 0:01:38]} Rxf1+ {[%emt 0:00:16]} 38. Kg2 {[%emt 0:00:29]} Rxf2+ {[%emt 0:02:01]} 39. Kxf2 {[%emt 0:00:16]} a1=Q {[%emt 0:00:08]} 40. Ne8 {[%emt 0:00:22]} Qc2+ {[%emt 0:00:45]} 41. Kf3 {[%emt 0:30:16]} Qf1+ {[%emt 0:30:05]} 0-1